[Event "Early-Titled-Tuesday-Blitz-May-14-2024"]
[Site "Chess.com"]
[Date "2024.05.14"]
[Round "5"]
[White "platy3"]
[Black "Korchmar_Vasiliy"]
[Result "1-0"]
[WhiteElo "2865"]
[BlackElo "2673"]
[TimeControl "180+1"]
[EndTime "8:58:48 PDT"]
[Termination "platy3 won on time"]

1. e4 {[%clk 0:03:00.9]} 1... c5 {[%clk 0:03:00.3]} 2. Nf3 {[%clk 0:02:54.9]}
2... d6 {[%clk 0:03:00.7]} 3. d4 {[%clk 0:02:54.8]} 3... cxd4 {[%clk 0:03:01.6]}
4. Nxd4 {[%clk 0:02:55.4]} 4... Nf6 {[%clk 0:03:02.3]} 5. Nc3 {[%clk 0:02:56]}
5... e5 {[%clk 0:03:02.9]} 6. Bb5+ {[%clk 0:02:51.9]} 6... Nbd7 {[%clk
0:03:00.9]} 7. Nf5 {[%clk 0:02:52]} 7... a6 {[%clk 0:03:00.5]} 8. Ba4 {[%clk
0:02:50.6]} 8... b5 {[%clk 0:03:00.8]} 9. Bb3 {[%clk 0:02:50.9]} 9... Nc5 {[%clk
0:03:01.5]} 10. Bg5 {[%clk 0:02:50.5]} 10... Bxf5 {[%clk 0:02:58.5]} 11. exf5
{[%clk 0:02:50.2]} 11... Be7 {[%clk 0:02:59.1]} 12. O-O {[%clk 0:02:48.1]} 12...
O-O {[%clk 0:02:59.6]} 13. Bxf6 {[%clk 0:02:48]} 13... Bxf6 {[%clk 0:02:59.5]}
14. Nd5 {[%clk 0:02:48.6]} 14... e4 {[%clk 0:02:55.3]} 15. c3 {[%clk 0:02:45.1]}
15... Be5 {[%clk 0:02:16.3]} 16. Qg4 {[%clk 0:02:43.4]} 16... Re8 {[%clk
0:02:01.5]} 17. Rad1 {[%clk 0:02:41.1]} 17... a5 {[%clk 0:01:53.2]} 18. Rfe1
{[%clk 0:02:36.1]} 18... b4 {[%clk 0:01:48.9]} 19. Bc2 {[%clk 0:02:23.4]} 19...
bxc3 {[%clk 0:01:46.8]} 20. bxc3 {[%clk 0:02:24.3]} 20... Rb8 {[%clk 0:01:36.1]}
21. Bxe4 {[%clk 0:02:19.4]} 21... h5 {[%clk 0:01:36.8]} 22. Qf3 {[%clk
0:02:06.3]} 22... Bxh2+ {[%clk 0:01:34.3]} 23. Kxh2 {[%clk 0:01:46.3]} 23...
Qh4+ {[%clk 0:01:34.6]} 24. Kg1 {[%clk 0:01:47]} 24... Rxe4 {[%clk 0:01:35.3]}
25. g3 {[%clk 0:01:38.8]} 25... Qg4 {[%clk 0:01:30.6]} 26. Kg2 {[%clk
0:01:21.2]} 26... Rb2 {[%clk 0:01:23.9]} 27. Ne3 {[%clk 0:01:14.3]} 27... Qxf3+
{[%clk 0:01:12.5]} 28. Kxf3 {[%clk 0:01:15.2]} 28... Ra4 {[%clk 0:01:13.1]} 29.
Rxd6 {[%clk 0:01:05.9]} 29... Ne4 {[%clk 0:01:13.1]} 30. Rd8+ {[%clk 0:00:55.4]}
30... Kh7 {[%clk 0:01:13.3]} 31. Nd1 {[%clk 0:00:54.3]} 31... Ng5+ {[%clk
0:00:36.7]} 32. Kg2 {[%clk 0:00:54.5]} 32... Rb5 {[%clk 0:00:37.6]} 33. Ree8
{[%clk 0:00:31.8]} 33... Rxf5 {[%clk 0:00:37]} 34. Ne3 {[%clk 0:00:32.5]} 34...
Rc5 {[%clk 0:00:27.8]} 35. Nd5 {[%clk 0:00:26.9]} 35... Ne6 {[%clk 0:00:12.6]}
36. Rh8+ {[%clk 0:00:16.9]} 36... Kg6 {[%clk 0:00:12.6]} 37. Rd6 {[%clk
0:00:16.7]} 37... Rxa2 {[%clk 0:00:09.2]} 38. Nf4+ {[%clk 0:00:15.2]} 38... Kf6
{[%clk 0:00:07.8]} 39. Rxh5 {[%clk 0:00:08.1]} 39... Rxh5 {[%clk 0:00:06.8]} 40.
Nxh5+ {[%clk 0:00:09]} 40... Ke7 {[%clk 0:00:07]} 41. Ra6 {[%clk 0:00:09]} 41...
a4 {[%clk 0:00:06.6]} 42. Kf3 {[%clk 0:00:08.6]} 42... Ra1 {[%clk 0:00:05.7]}
43. g4 {[%clk 0:00:05.2]} 43... a3 {[%clk 0:00:05.8]} 44. Ng3 {[%clk 0:00:05.7]}
44... a2 {[%clk 0:00:03.3]} 45. Nf5+ {[%clk 0:00:06.1]} 45... Kf6 {[%clk
0:00:03.3]} 46. Ne3 {[%clk 0:00:06.5]} 46... g6 {[%clk 0:00:03.1]} 47. Nc2
{[%clk 0:00:06.9]} 47... Rc1 {[%clk 0:00:02.6]} 48. Rxa2 {[%clk 0:00:07.3]}
48... Ng5+ {[%clk 0:00:03.1]} 49. Ke3 {[%clk 0:00:07.5]} 49... Ne6 {[%clk
0:00:03.2]} 50. Kd2 {[%clk 0:00:06.3]} 50... Rg1 {[%clk 0:00:03.4]} 51. Ne3
{[%clk 0:00:06.2]} 51... Ke5 {[%clk 0:00:02.7]} 52. Ra5+ {[%clk 0:00:06]} 52...
Ke4 {[%clk 0:00:03.3]} 53. Ra7 {[%clk 0:00:06.5]} 53... f5 {[%clk 0:00:01.4]}
54. gxf5 {[%clk 0:00:06.5]} 54... gxf5 {[%clk 0:00:02.3]} 55. Re7 {[%clk
0:00:06.8]} 55... Ke5 {[%clk 0:00:02.2]} 56. f4+ {[%clk 0:00:07.1]} 56... Kd6
{[%clk 0:00:01.5]} 57. Nxf5+ {[%clk 0:00:07.4]} 57... Kd5 {[%clk 0:00:01.3]} 58.
c4+ {[%clk 0:00:07.3]} 58... Kxc4 {[%clk 0:00:00.4]} 59. Rxe6 {[%clk 0:00:07.5]}
59... Kd5 {[%clk 0:00:00.3]} 60. Re5+ {[%clk 0:00:07.7]} 1-0

[Event "Early-Titled-Tuesday-Blitz-May-14-2024"]
[Site "Chess.com"]
[Date "2024.05.14"]
[Round "5"]
[White "ZeZacarias"]
[Black "zajka-molotok"]
[Result "0-1"]
[WhiteElo "2049"]
[BlackElo "2548"]
[TimeControl "180+1"]
[EndTime "8:58:49 PDT"]
[Termination "zajka-molotok won on time"]

1. d4 {[%clk 0:03:00.9]} 1... Nf6 {[%clk 0:02:21.2]} 2. c4 {[%clk 0:02:59.9]}
2... e6 {[%clk 0:02:21.1]} 3. Nf3 {[%clk 0:02:59.2]} 3... c5 {[%clk 0:02:20.6]}
4. g3 {[%clk 0:02:58.2]} 4... b6 {[%clk 0:02:18.2]} 5. Bg2 {[%clk 0:02:57.9]}
5... Bb7 {[%clk 0:02:18.6]} 6. O-O {[%clk 0:02:58.5]} 6... cxd4 {[%clk
0:02:17.8]} 7. Qxd4 {[%clk 0:02:54.9]} 7... Bc5 {[%clk 0:02:14.2]} 8. Qd1 {[%clk
0:02:49.4]} 8... O-O {[%clk 0:02:13.5]} 9. b3 {[%clk 0:02:49.3]} 9... d5 {[%clk
0:02:11.7]} 10. cxd5 {[%clk 0:02:45.9]} 10... Nxd5 {[%clk 0:02:08.5]} 11. Bb2
{[%clk 0:02:46.4]} 11... Nc6 {[%clk 0:02:04.3]} 12. Nc3 {[%clk 0:02:46.1]} 12...
Nxc3 {[%clk 0:01:55.5]} 13. Bxc3 {[%clk 0:02:47]} 13... Qe7 {[%clk 0:01:55.7]}
14. Qc2 {[%clk 0:02:41.8]} 14... Rac8 {[%clk 0:01:54.6]} 15. Qb2 {[%clk
0:02:41.9]} 15... f6 {[%clk 0:01:53]} 16. a3 {[%clk 0:02:41.1]} 16... e5 {[%clk
0:01:51.4]} 17. b4 {[%clk 0:02:41]} 17... Bd6 {[%clk 0:01:51.1]} 18. Rfd1 {[%clk
0:02:39.8]} 18... Bb8 {[%clk 0:01:49.8]} 19. Rd2 {[%clk 0:02:37.6]} 19... Rfd8
{[%clk 0:01:48.5]} 20. Rad1 {[%clk 0:02:38]} 20... Rxd2 {[%clk 0:01:47.8]} 21.
Rxd2 {[%clk 0:02:35.5]} 21... Rd8 {[%clk 0:01:47.6]} 22. Qb3+ {[%clk 0:02:29.1]}
22... Kh8 {[%clk 0:01:47]} 23. Nh4 {[%clk 0:02:23.4]} 23... Rxd2 {[%clk
0:01:44.4]} 24. Bxd2 {[%clk 0:02:22.8]} 24... Nd4 {[%clk 0:01:44.1]} 25. Qd3
{[%clk 0:02:14.8]} 25... Bxg2 {[%clk 0:01:41.4]} 26. Kxg2 {[%clk 0:02:13.5]}
26... g6 {[%clk 0:01:36.1]} 27. Bc3 {[%clk 0:02:12]} 27... Qb7+ {[%clk
0:01:28.2]} 28. Kg1 {[%clk 0:02:05.5]} 28... Ne6 {[%clk 0:01:23.4]} 29. f4
{[%clk 0:01:59.4]} 29... b5 {[%clk 0:01:07.1]} 30. Nxg6+ {[%clk 0:01:30.9]}
30... hxg6 {[%clk 0:01:03.8]} 31. Qxg6 {[%clk 0:01:31.8]} 31... Qb6+ {[%clk
0:00:55.8]} 32. Kf1 {[%clk 0:01:26.1]} 32... Ng7 {[%clk 0:00:55.3]} 33. h4
{[%clk 0:01:12.1]} 33... Qc6 {[%clk 0:00:52.6]} 34. h5 {[%clk 0:00:32]} 34...
Qh1+ {[%clk 0:00:09.6]} 35. Kf2 {[%clk 0:00:31.2]} 35... Qh2+ {[%clk 0:00:09.8]}
36. Kf1 {[%clk 0:00:30.3]} 36... Qxh5 {[%clk 0:00:09.7]} 37. Qxf6 {[%clk
0:00:29.1]} 37... Qh3+ {[%clk 0:00:08.4]} 38. Kf2 {[%clk 0:00:27.7]} 38... Qh2+
{[%clk 0:00:07.3]} 39. Kf1 {[%clk 0:00:23.8]} 39... Qxg3 {[%clk 0:00:06.8]} 40.
Bxe5 {[%clk 0:00:13.3]} 40... Bxe5 {[%clk 0:00:05.7]} 41. fxe5 {[%clk
0:00:14.2]} 41... Qg4 {[%clk 0:00:03.8]} 42. e3 {[%clk 0:00:06.9]} 42... Qf5+
{[%clk 0:00:03.9]} 43. Ke2 {[%clk 0:00:04.3]} 43... Qxf6 {[%clk 0:00:04.1]} 44.
exf6 {[%clk 0:00:04.6]} 44... Ne6 {[%clk 0:00:04.8]} 45. e4 {[%clk 0:00:04.7]}
45... Kg8 {[%clk 0:00:05.3]} 46. Ke3 {[%clk 0:00:04.6]} 46... Kf7 {[%clk
0:00:05.7]} 47. e5 {[%clk 0:00:05.3]} 47... Nc7 {[%clk 0:00:05.2]} 48. Ke4
{[%clk 0:00:05.4]} 48... Ke6 {[%clk 0:00:05.8]} 49. Kd4 {[%clk 0:00:04.4]} 49...
Na6 {[%clk 0:00:04.7]} 50. f7 {[%clk 0:00:02.1]} 50... Kxf7 {[%clk 0:00:04.5]}
51. Kd5 {[%clk 0:00:02.8]} 51... Nb8 {[%clk 0:00:04.3]} 52. Kd6 {[%clk
0:00:01.3]} 52... Ke8 {[%clk 0:00:03.7]} 53. Kc7 {[%clk 0:00:00.7]} 53... Na6+
{[%clk 0:00:03.7]} 54. Kb7 {[%clk 0:00:00.3]} 54... Nxb4 {[%clk 0:00:02.9]} 55.
axb4 {[%clk 0:00:01.2]} 55... Kd7 {[%clk 0:00:02.7]} 56. Kxa7 {[%clk 0:00:01.1]}
56... Kc6 {[%clk 0:00:02.2]} 0-1

[Event "Early-Titled-Tuesday-Blitz-May-14-2024"]
[Site "Chess.com"]
[Date "2024.05.14"]
[Round "5"]
[White "LangesNasenhaar"]
[Black "TERMINATOR_PC"]
[Result "1-0"]
[WhiteElo "2471"]
[BlackElo "2599"]
[TimeControl "180+1"]
[EndTime "8:58:50 PDT"]
[Termination "LangesNasenhaar won by resignation"]

1. d4 {[%clk 0:03:00.9]} 1... Nf6 {[%clk 0:00:24.3]} 2. Bg5 {[%clk 0:02:55.1]}
2... d6 {[%clk 0:00:23.7]} 3. Bxf6 {[%clk 0:02:54.7]} 3... exf6 {[%clk
0:00:24.3]} 4. c4 {[%clk 0:02:53.1]} 4... g6 {[%clk 0:00:24.8]} 5. e3 {[%clk
0:02:53.3]} 5... Bg7 {[%clk 0:00:25.1]} 6. g3 {[%clk 0:02:53.6]} 6... f5 {[%clk
0:00:25.6]} 7. Nc3 {[%clk 0:02:52.9]} 7... O-O {[%clk 0:00:26.2]} 8. Nge2 {[%clk
0:02:53.4]} 8... c6 {[%clk 0:00:26.7]} 9. Bg2 {[%clk 0:02:53.6]} 9... Nd7 {[%clk
0:00:27.4]} 10. O-O {[%clk 0:02:53.7]} 10... Nf6 {[%clk 0:00:28.1]} 11. b4
{[%clk 0:02:53.8]} 11... h5 {[%clk 0:00:28.5]} 12. h4 {[%clk 0:02:52.8]} 12...
Bd7 {[%clk 0:00:28.8]} 13. a4 {[%clk 0:02:49.6]} 13... a5 {[%clk 0:00:28.6]} 14.
b5 {[%clk 0:02:49.3]} 14... Qe7 {[%clk 0:00:28]} 15. Qc2 {[%clk 0:02:40.9]}
15... Rac8 {[%clk 0:00:27.6]} 16. Rab1 {[%clk 0:02:31.9]} 16... Ng4 {[%clk
0:00:26.6]} 17. bxc6 {[%clk 0:02:25.9]} 17... bxc6 {[%clk 0:00:26.8]} 18. Rb7
{[%clk 0:02:20.3]} 18... Rb8 {[%clk 0:00:25.9]} 19. Qb3 {[%clk 0:02:11.4]} 19...
Rxb7 {[%clk 0:00:19.9]} 20. Qxb7 {[%clk 0:02:10.9]} 20... c5 {[%clk 0:00:20.5]}
21. Nd5 {[%clk 0:01:37.3]} 21... Qe8 {[%clk 0:00:17.9]} 22. Nb6 {[%clk
0:01:23.6]} 22... Bxa4 {[%clk 0:00:16.5]} 23. dxc5 {[%clk 0:01:20.8]} 23... dxc5
{[%clk 0:00:16.2]} 24. Nf4 {[%clk 0:01:12.2]} 24... Bb3 {[%clk 0:00:13.5]} 25.
Nd7 {[%clk 0:01:00.6]} 25... Bxc4 {[%clk 0:00:13.8]} 26. Rc1 {[%clk 0:00:58.6]}
26... Ba6 {[%clk 0:00:12.3]} 27. Qa7 {[%clk 0:00:51.9]} 27... Bb5 {[%clk
0:00:03.5]} 28. Nxf8 {[%clk 0:00:50.6]} 28... Bxf8 {[%clk 0:00:04.4]} 29. Qxa5
{[%clk 0:00:48]} 29... c4 {[%clk 0:00:04]} 30. Nd5 {[%clk 0:00:45.5]} 30... Bc6
{[%clk 0:00:00.6]} 31. Rxc4 {[%clk 0:00:40.9]} 31... Bxd5 {[%clk 0:00:01.4]} 32.
Bxd5 {[%clk 0:00:39.6]} 32... Qe7 {[%clk 0:00:02.3]} 33. Rc7 {[%clk 0:00:34.7]}
33... Qd8 {[%clk 0:00:03.1]} 34. Bxf7+ {[%clk 0:00:32.2]} 34... Kh8 {[%clk
0:00:03.8]} 35. Qa1+ {[%clk 0:00:27.6]} 35... Bg7 {[%clk 0:00:03.8]} 36. Qc1
{[%clk 0:00:27.5]} 36... Kh7 {[%clk 0:00:02.7]} 37. Bb3 {[%clk 0:00:15.7]} 37...
Ne5 {[%clk 0:00:03.2]} 38. Rc8 {[%clk 0:00:12.9]} 38... Qd6 {[%clk 0:00:02.6]}
39. Bg8+ {[%clk 0:00:12.6]} 39... Kh8 {[%clk 0:00:01.4]} 40. e4 {[%clk
0:00:11.4]} 40... Nd3 {[%clk 0:00:01.2]} 41. Bc4+ {[%clk 0:00:09.8]} 41... Kh7
{[%clk 0:00:01.2]} 42. Bxd3 {[%clk 0:00:10]} 42... Qxd3 {[%clk 0:00:01.8]} 43.
exf5 {[%clk 0:00:10.2]} 43... Qxf5 {[%clk 0:00:02.1]} 44. Rc5 {[%clk 0:00:08.8]}
44... Qe4 {[%clk 0:00:02.2]} 45. Rc6 {[%clk 0:00:08.7]} 45... Bd4 {[%clk
0:00:01.9]} 46. Qc2 {[%clk 0:00:09.3]} 46... Qg4 {[%clk 0:00:01.1]} 47. Kg2
{[%clk 0:00:08]} 47... Be5 {[%clk 0:00:00.3]} 48. Rc4 {[%clk 0:00:06.9]} 48...
Qf5 {[%clk 0:00:00.6]} 49. Qxf5 {[%clk 0:00:06.7]} 49... gxf5 {[%clk 0:00:01.5]}
50. Rc5 {[%clk 0:00:07.4]} 50... Bf6 {[%clk 0:00:02]} 51. Rxf5 {[%clk
0:00:07.5]} 51... Kg6 {[%clk 0:00:02.9]} 52. Rf3 {[%clk 0:00:08.4]} 52... Bg7
{[%clk 0:00:03.2]} 53. Rb3 {[%clk 0:00:09.3]} 53... Bf6 {[%clk 0:00:04.1]} 54.
f3 {[%clk 0:00:09.9]} 54... Kg7 {[%clk 0:00:04.9]} 55. Kh3 {[%clk 0:00:10.4]}
55... Kg6 {[%clk 0:00:05.8]} 56. g4 {[%clk 0:00:11.1]} 56... hxg4+ {[%clk
0:00:06.7]} 57. fxg4 {[%clk 0:00:11.4]} 57... Bg7 {[%clk 0:00:07.6]} 58. h5+
{[%clk 0:00:11.8]} 58... Kh7 {[%clk 0:00:08.5]} 59. Rb5 {[%clk 0:00:12.2]} 59...
Bf6 {[%clk 0:00:08.7]} 60. Kg3 {[%clk 0:00:12.6]} 60... Bg7 {[%clk 0:00:09.6]}
61. Kh4 {[%clk 0:00:13.2]} 61... Bh6 {[%clk 0:00:10.3]} 62. g5 {[%clk
0:00:13.5]} 62... Bg7 {[%clk 0:00:11.2]} 63. Rb7 {[%clk 0:00:13.6]} 63... Kh8
{[%clk 0:00:11.3]} 64. Kg4 {[%clk 0:00:14]} 64... Kh7 {[%clk 0:00:11.6]} 65. Kf5
{[%clk 0:00:13.3]} 65... Kh8 {[%clk 0:00:12.2]} 66. g6 {[%clk 0:00:12.5]} 66...
Kg8 {[%clk 0:00:12.5]} 67. Rb8+ {[%clk 0:00:12.5]} 67... Bf8 {[%clk 0:00:13.1]}
68. Rxf8+ {[%clk 0:00:12.3]} 68... Kxf8 {[%clk 0:00:13.2]} 69. h6 {[%clk
0:00:12.9]} 69... Kg8 {[%clk 0:00:13.7]} 70. Kf6 {[%clk 0:00:12.9]} 1-0

[Event "Early-Titled-Tuesday-Blitz-May-14-2024"]
[Site "Chess.com"]
[Date "2024.05.14"]
[Round "5"]
[White "DenLaz"]
[Black "tjychess"]
[Result "1-0"]
[WhiteElo "3123"]
[BlackElo "2945"]
[TimeControl "180+1"]
[EndTime "8:58:52 PDT"]
[Termination "DenLaz won by resignation"]

1. d4 {[%clk 0:03:00.9]} 1... d5 {[%clk 0:03:00.1]} 2. Nf3 {[%clk 0:03:01]} 2...
Nf6 {[%clk 0:03:00.1]} 3. c4 {[%clk 0:03:01.5]} 3... c6 {[%clk 0:03:00.3]} 4.
Qc2 {[%clk 0:03:00.6]} 4... dxc4 {[%clk 0:03:00.1]} 5. Qxc4 {[%clk 0:03:00.6]}
5... Bf5 {[%clk 0:03:00.4]} 6. g3 {[%clk 0:03:01]} 6... e6 {[%clk 0:03:00.8]} 7.
Bg2 {[%clk 0:03:01.7]} 7... Nbd7 {[%clk 0:03:01.5]} 8. O-O {[%clk 0:03:02.3]}
8... Be7 {[%clk 0:03:02.2]} 9. Qb3 {[%clk 0:03:03]} 9... Qb6 {[%clk 0:03:01.3]}
10. Nbd2 {[%clk 0:03:03.5]} 10... O-O {[%clk 0:03:00]} 11. Nc4 {[%clk
0:03:03.9]} 11... Qa6 {[%clk 0:02:51]} 12. Bf4 {[%clk 0:03:03]} 12... Nb6 {[%clk
0:02:39]} 13. Nd6 {[%clk 0:03:02]} 13... Nfd5 {[%clk 0:02:16.4]} 14. Nxf5 {[%clk
0:02:39.3]} 14... exf5 {[%clk 0:02:17.3]} 15. Bd2 {[%clk 0:02:39.3]} 15... Qxe2
{[%clk 0:02:13.1]} 16. Rfe1 {[%clk 0:02:37.6]} 16... Qc4 {[%clk 0:02:04.8]} 17.
Qd1 {[%clk 0:02:37.3]} 17... Bf6 {[%clk 0:01:55.9]} 18. Bf1 {[%clk 0:02:07.2]}
18... Qa4 {[%clk 0:01:56]} 19. Qc1 {[%clk 0:02:06.1]} 19... c5 {[%clk
0:01:12.3]} 20. dxc5 {[%clk 0:01:54.3]} 20... Rac8 {[%clk 0:01:12.2]} 21. Bd3
{[%clk 0:01:27.5]} 21... Qg4 {[%clk 0:01:04.7]} 22. Be2 {[%clk 0:00:45.6]} 22...
Na4 {[%clk 0:00:54.4]} 23. Ne5 {[%clk 0:00:33.2]} 23... Qd4 {[%clk 0:00:49.8]}
24. Nd7 {[%clk 0:00:33.2]} 24... Rfd8 {[%clk 0:00:27.5]} 25. Nxf6+ {[%clk
0:00:31.9]} 25... Qxf6 {[%clk 0:00:28.4]} 26. Bg5 {[%clk 0:00:29.7]} 26... Qxb2
{[%clk 0:00:25.7]} 27. Bxd8 {[%clk 0:00:29.5]} 27... Rxd8 {[%clk 0:00:24.6]} 28.
Qxb2 {[%clk 0:00:28.9]} 28... Nxb2 {[%clk 0:00:25.5]} 29. Rab1 {[%clk
0:00:29.1]} 29... Na4 {[%clk 0:00:25.8]} 30. Rxb7 {[%clk 0:00:29.2]} 30... Nxc5
{[%clk 0:00:24.7]} 31. Rxa7 {[%clk 0:00:29.6]} 31... Nc3 {[%clk 0:00:12.4]} 32.
Bc4 {[%clk 0:00:29.5]} 32... h6 {[%clk 0:00:06.2]} 33. Re5 {[%clk 0:00:19]}
33... N5e4 {[%clk 0:00:03.9]} 34. Rxf5 {[%clk 0:00:11]} 34... Nd6 {[%clk
0:00:04.2]} 35. Bxf7+ {[%clk 0:00:11.5]} 35... Kh7 {[%clk 0:00:04.4]} 36. Rf3
{[%clk 0:00:07.1]} 36... Ne2+ {[%clk 0:00:03]} 37. Kg2 {[%clk 0:00:07.8]} 37...
Nd4 {[%clk 0:00:03]} 38. Rd3 {[%clk 0:00:08.5]} 38... Nc6 {[%clk 0:00:02.8]} 39.
Ra6 {[%clk 0:00:06.7]} 39... Nxf7 {[%clk 0:00:03]} 40. Rxd8 {[%clk 0:00:06]}
40... Nfxd8 {[%clk 0:00:03.9]} 41. Rb6 {[%clk 0:00:05.8]} 41... Na5 {[%clk
0:00:03.9]} 42. a4 {[%clk 0:00:06.2]} 42... Ndc6 {[%clk 0:00:02.9]} 43. h4
{[%clk 0:00:05.5]} 43... Kg6 {[%clk 0:00:03.4]} 44. Rb5 {[%clk 0:00:06]} 44...
Kf6 {[%clk 0:00:03.7]} 45. h5 {[%clk 0:00:06.3]} 45... Ke6 {[%clk 0:00:03.1]}
46. g4 {[%clk 0:00:06.2]} 46... Kd6 {[%clk 0:00:03.2]} 47. Rf5 {[%clk
0:00:05.8]} 47... Nc4 {[%clk 0:00:02.8]} 48. Rf7 {[%clk 0:00:06]} 48... N4e5
{[%clk 0:00:01.5]} 49. Rxg7 {[%clk 0:00:06.2]} 49... Nd4 {[%clk 0:00:02]} 50. g5
{[%clk 0:00:04.3]} 50... hxg5 {[%clk 0:00:01.2]} 51. h6 {[%clk 0:00:04.7]} 51...
Ne6 {[%clk 0:00:02.1]} 52. h7 {[%clk 0:00:04.1]} 52... Nxg7 {[%clk 0:00:02.5]}
53. h8=Q {[%clk 0:00:04.7]} 53... Ne6 {[%clk 0:00:03.4]} 54. Qf6 {[%clk
0:00:04.6]} 54... Kd5 {[%clk 0:00:03.6]} 55. a5 {[%clk 0:00:05]} 55... Nf4+
{[%clk 0:00:04.1]} 56. Kf1 {[%clk 0:00:05.6]} 56... Nc4 {[%clk 0:00:03.6]} 57.
a6 {[%clk 0:00:05]} 57... Ke4 {[%clk 0:00:04.2]} 58. a7 {[%clk 0:00:04.2]} 58...
Nd2+ {[%clk 0:00:04.8]} 59. Ke1 {[%clk 0:00:04.6]} 59... Kd3 {[%clk 0:00:05.1]}
60. Qd6+ {[%clk 0:00:04.4]} 1-0

[Event "Early-Titled-Tuesday-Blitz-May-14-2024"]
[Site "Chess.com"]
[Date "2024.05.14"]
[Round "5"]
[White "kekic76"]
[Black "Nasrin_Babayeva"]
[Result "1/2-1/2"]
[WhiteElo "2303"]
[BlackElo "1933"]
[TimeControl "180+1"]
[EndTime "8:58:52 PDT"]
[Termination "Game drawn by repetition"]

1. c4 {[%clk 0:03:00.9]} 1... d5 {[%clk 0:03:00.9]} 2. cxd5 {[%clk 0:03:00.4]}
2... Qxd5 {[%clk 0:03:01.2]} 3. Nc3 {[%clk 0:03:00.6]} 3... Qa5 {[%clk
0:03:01.5]} 4. Nf3 {[%clk 0:03:00.4]} 4... Nf6 {[%clk 0:03:00.9]} 5. g3 {[%clk
0:03:01]} 5... Bf5 {[%clk 0:03:01.1]} 6. Bg2 {[%clk 0:03:01.5]} 6... c6 {[%clk
0:03:01.5]} 7. O-O {[%clk 0:03:02.1]} 7... e6 {[%clk 0:03:01.7]} 8. d4 {[%clk
0:03:02.6]} 8... Nbd7 {[%clk 0:03:01]} 9. Bf4 {[%clk 0:02:57.1]} 9... Bb4 {[%clk
0:02:56.8]} 10. Qb3 {[%clk 0:02:38.9]} 10... O-O {[%clk 0:02:51.3]} 11. a3
{[%clk 0:02:38.1]} 11... Bxc3 {[%clk 0:02:51]} 12. bxc3 {[%clk 0:02:39]} 12...
Nd5 {[%clk 0:02:48.8]} 13. Bd6 {[%clk 0:02:26.9]} 13... Rfd8 {[%clk 0:02:31.6]}
14. Bb4 {[%clk 0:02:25.1]} 14... Qb6 {[%clk 0:02:28.2]} 15. c4 {[%clk
0:01:50.6]} 15... Nxb4 {[%clk 0:02:23]} 16. axb4 {[%clk 0:01:51.5]} 16... c5
{[%clk 0:02:16.2]} 17. dxc5 {[%clk 0:01:27.5]} 17... Nxc5 {[%clk 0:02:14.1]} 18.
Qa3 {[%clk 0:01:25.6]} 18... Ne4 {[%clk 0:02:11.5]} 19. e3 {[%clk 0:01:08.1]}
19... a6 {[%clk 0:01:58.4]} 20. c5 {[%clk 0:01:06]} 20... Qb5 {[%clk 0:01:54.8]}
21. Nd4 {[%clk 0:01:05.2]} 21... Qe8 {[%clk 0:01:35.9]} 22. Nxf5 {[%clk
0:01:02.9]} 22... exf5 {[%clk 0:01:36.8]} 23. Rfd1 {[%clk 0:00:58.9]} 23...
Rxd1+ {[%clk 0:01:17.3]} 24. Rxd1 {[%clk 0:00:58.1]} 24... Rd8 {[%clk 0:01:18]}
25. Qb3 {[%clk 0:00:42.3]} 25... Nd2 {[%clk 0:00:57.3]} 26. Qc3 {[%clk
0:00:19.4]} 26... Ne4 {[%clk 0:00:43.3]} 27. Qc2 {[%clk 0:00:14.9]} 27... h6
{[%clk 0:00:21.3]} 28. Rxd8 {[%clk 0:00:13.8]} 28... Qxd8 {[%clk 0:00:20.5]} 29.
Bxe4 {[%clk 0:00:13.7]} 29... fxe4 {[%clk 0:00:21.4]} 30. Qxe4 {[%clk
0:00:14.3]} 30... Qd1+ {[%clk 0:00:19.3]} 31. Kg2 {[%clk 0:00:14.3]} 31... Qd7
{[%clk 0:00:18.6]} 32. h4 {[%clk 0:00:08.8]} 32... Qb5 {[%clk 0:00:18.7]} 33.
Qd4 {[%clk 0:00:06.3]} 33... a5 {[%clk 0:00:15]} 34. bxa5 {[%clk 0:00:05.5]}
34... Qxa5 {[%clk 0:00:15.4]} 35. Qd6 {[%clk 0:00:06.2]} 35... Qb5 {[%clk
0:00:13.7]} 36. Kf3 {[%clk 0:00:05.5]} 36... Qb1 {[%clk 0:00:10.4]} 37. Qd8+
{[%clk 0:00:03.4]} 37... Kh7 {[%clk 0:00:10.3]} 38. Ke2 {[%clk 0:00:03.3]} 38...
Qb2+ {[%clk 0:00:10.1]} 39. Qd2 {[%clk 0:00:01.7]} 39... Qb5+ {[%clk 0:00:09]}
40. Qd3+ {[%clk 0:00:02.3]} 40... Qxd3+ {[%clk 0:00:07.7]} 41. Kxd3 {[%clk
0:00:03.2]} 41... Kg6 {[%clk 0:00:08.4]} 42. Kc4 {[%clk 0:00:03.6]} 42... Kf6
{[%clk 0:00:09.2]} 43. Kb5 {[%clk 0:00:03]} 43... Ke5 {[%clk 0:00:09.2]} 44. Kb6
{[%clk 0:00:03.2]} 44... Kd5 {[%clk 0:00:09.9]} 45. e4+ {[%clk 0:00:01.9]} 45...
Kc4 {[%clk 0:00:07.4]} 46. c6 {[%clk 0:00:00.5]} 46... bxc6 {[%clk 0:00:07.1]}
47. Kxc6 {[%clk 0:00:01.4]} 47... Kd4 {[%clk 0:00:07.6]} 48. f3 {[%clk
0:00:02.1]} 48... Ke3 {[%clk 0:00:08]} 49. Kd6 {[%clk 0:00:02.3]} 49... Kxf3
{[%clk 0:00:08.6]} 50. e5 {[%clk 0:00:02.5]} 50... Kxg3 {[%clk 0:00:08.5]} 51.
Ke7 {[%clk 0:00:03.2]} 51... Kf4 {[%clk 0:00:07.5]} 52. Kxf7 {[%clk 0:00:02.1]}
52... Kxe5 {[%clk 0:00:07.4]} 53. Kxg7 {[%clk 0:00:02.9]} 53... Kf5 {[%clk
0:00:06.5]} 54. Kxh6 {[%clk 0:00:03.8]} 54... Kf6 {[%clk 0:00:07]} 55. h5 {[%clk
0:00:04.7]} 55... Kf7 {[%clk 0:00:05]} 56. Kh7 {[%clk 0:00:05.6]} 56... Kf6
{[%clk 0:00:03.3]} 57. h6 {[%clk 0:00:06]} 57... Kf7 {[%clk 0:00:03.5]} 58. Kh8
{[%clk 0:00:06]} 58... Kf8 {[%clk 0:00:03.6]} 59. Kh7 {[%clk 0:00:06.9]} 59...
Kf7 {[%clk 0:00:04]} 60. Kh8 {[%clk 0:00:06.5]} 60... Kf8 {[%clk 0:00:04.5]} 61.
Kh7 {[%clk 0:00:07.4]} 61... Kf7 {[%clk 0:00:05]} 1/2-1/2